[Event "Titled Tuesday Blitz May 23 Late 2023"]
[White "Vega Gutierrez, Sabrina"]
[Black "Melian, Juan Sebastian"]
[WhiteFideId "2219026"]
[BlackFideId "3706575"]
[WhiteElo "2209"]
[BlackElo "2092"]
[Result "1-0"]
[Round "09"]
[TimeControl "180+2"]
[Date "2023.05.23"]
[WhiteClock "0:01:02"]
[BlackClock "0:00:00"]

1. e4 {[%clk 0:02:39]}  c5 {[%clk 0:02:59]} 2. Nf3 {[%clk 0:02:38]}  e6 {[%clk 0:02:59]} 3. d4 {[%clk 0:02:38]}  cxd4 {[%clk 0:03:00]} 4. Nxd4 {[%clk 0:02:38]}  Nf6 {[%clk 0:03:00]} 5. Nc3 {[%clk 0:02:38]}  Nc6 {[%clk 0:02:47]} 6. Nxc6 {[%clk 0:02:35]}  bxc6 {[%clk 0:02:44]} 7. e5 {[%clk 0:02:35]}  Nd5 {[%clk 0:02:44]} 8. Ne4 {[%clk 0:02:35]}  Qc7 {[%clk 0:02:18]} 9. f4 {[%clk 0:02:35]}  Be7 {[%clk 0:01:46]} 10. c4 {[%clk 0:02:30]}  Nb4 {[%clk 0:01:43]} 11. a3 {[%clk 0:02:25]}  Na6 {[%clk 0:01:42]} 12. Be3 {[%clk 0:02:25]}  O-O {[%clk 0:01:40]} 13. b4 {[%clk 0:02:17]}  f5 {[%clk 0:01:35]} 14. Nd6 {[%clk 0:01:53]}  Nb8 {[%clk 0:01:20]} 15. Be2 {[%clk 0:01:42]}  a5 {[%clk 0:01:05]} 16. O-O {[%clk 0:01:12]}  Bb7 {[%clk 0:00:46]} 17. b5 {[%clk 0:01:11]}  cxb5 {[%clk 0:00:45]} 18. cxb5 {[%clk 0:01:09]}  Bxd6 {[%clk 0:00:12]} 19. exd6 {[%clk 0:01:08]}  Qd8 {[%clk 0:00:04]} 20. Rc1 {[%clk 0:01:05]}  Bd5 {[%clk 0:00:02]} 21. Bf3 {[%clk 0:01:03]}  Bxf3 {[%clk 0:00:00]} 22. Qxf3 {[%clk 0:01:02]} 1-0


[Site "https://www.chess.com"]

[Event "Titled Tuesday Blitz May 23 Late 2023"]
[White "Arencibia Monduy, Antonio"]
[Black "Tologon tegin, Semetei"]
[WhiteFideId "3507939"]
[BlackFideId "13800574"]
[WhiteElo "2411"]
[BlackElo "2247"]
[Result "1-0"]
[Round "09"]
[TimeControl "180+2"]
[Date "2023.05.23"]
[WhiteClock "0:00:22"]
[BlackClock "0:00:49"]

1. e4 {[%clk 0:02:55]}  c5 {[%clk 0:01:50]} 2. Nf3 {[%clk 0:02:54]}  d6 {[%clk 0:01:51]} 3. c3 {[%clk 0:02:53]}  Nf6 {[%clk 0:01:50]} 4. Be2 {[%clk 0:02:53]}  g6 {[%clk 0:01:50]} 5. O-O {[%clk 0:02:52]}  Bg7 {[%clk 0:01:50]} 6. Re1 {[%clk 0:02:53]}  O-O {[%clk 0:01:50]} 7. Bf1 {[%clk 0:02:53]}  Nc6 {[%clk 0:01:49]} 8. h3 {[%clk 0:02:53]}  d5 {[%clk 0:01:49]} 9. e5 {[%clk 0:02:53]}  Ne8 {[%clk 0:01:48]} 10. d4 {[%clk 0:02:53]}  cxd4 {[%clk 0:01:48]} 11. cxd4 {[%clk 0:02:53]}  Bf5 {[%clk 0:01:46]} 12. a3 {[%clk 0:02:52]}  Be4 {[%clk 0:01:45]} 13. Be3 {[%clk 0:02:30]}  f6 {[%clk 0:01:43]} 14. exf6 {[%clk 0:02:19]}  exf6 {[%clk 0:01:42]} 15. Nbd2 {[%clk 0:02:18]}  f5 {[%clk 0:01:36]} 16. Bf4 {[%clk 0:01:47]}  Nxd4 {[%clk 0:01:31]} 17. Nxd4 {[%clk 0:01:44]}  Bxd4 {[%clk 0:01:30]} 18. Nxe4 {[%clk 0:01:31]}  dxe4 {[%clk 0:01:30]} 19. Qb3+ {[%clk 0:01:27]}  Kg7 {[%clk 0:01:28]} 20. Rad1 {[%clk 0:01:26]}  Qb6 {[%clk 0:01:27]} 21. Qg3 {[%clk 0:01:14]}  Nf6 {[%clk 0:01:25]} 22. Be2 {[%clk 0:00:37]}  Rf7 {[%clk 0:01:21]} 23. b4 {[%clk 0:00:36]}  Rd7 {[%clk 0:01:15]} 24. Qh4 {[%clk 0:00:37]}  Rad8 {[%clk 0:01:13]} 25. Bg5 {[%clk 0:00:29]}  Be5 {[%clk 0:01:07]} 26. Rxd7+ {[%clk 0:00:28]}  Rxd7 {[%clk 0:01:07]} 27. Bc4 {[%clk 0:00:25]}  Qc6 {[%clk 0:00:58]} 28. Qh6+ {[%clk 0:00:22]}  Kh8 {[%clk 0:00:49]} 29. Qf8+ {[%clk 0:00:22]} 1-0


[Site "https://www.chess.com"]

[Event "Titled Tuesday Blitz May 23 Late 2023"]
[White "Kisic, Bozidar"]
[Black "Qiao, Cindy"]
[WhiteFideId "16500350"]
[BlackFideId "2620243"]
[WhiteElo "2234"]
[BlackElo "1777"]
[Result "1/2-1/2"]
[Round "09"]
[TimeControl "180+2"]
[Date "2023.05.23"]
[WhiteClock "0:00:24"]
[BlackClock "0:00:31"]

1. d4 {[%clk 0:02:56]}  d5 {[%clk 0:02:59]} 2. c4 {[%clk 0:02:56]}  e6 {[%clk 0:02:59]} 3. Nc3 {[%clk 0:02:55]}  Nf6 {[%clk 0:03:00]} 4. cxd5 {[%clk 0:02:55]}  exd5 {[%clk 0:03:01]} 5. Bg5 {[%clk 0:02:55]}  Nbd7 {[%clk 0:03:01]} 6. e3 {[%clk 0:02:55]}  Be7 {[%clk 0:03:00]} 7. Bd3 {[%clk 0:02:56]}  c6 {[%clk 0:03:00]} 8. Qc2 {[%clk 0:02:56]}  Nh5 {[%clk 0:03:00]} 9. Bxe7 {[%clk 0:02:52]}  Qxe7 {[%clk 0:03:01]} 10. Nge2 {[%clk 0:02:49]}  g6 {[%clk 0:03:01]} 11. h3 {[%clk 0:02:43]}  Ndf6 {[%clk 0:02:59]} 12. g4 {[%clk 0:02:41]}  Ng7 {[%clk 0:02:59]} 13. Ng3 {[%clk 0:02:40]}  Be6 {[%clk 0:02:56]} 14. O-O-O {[%clk 0:02:33]}  O-O-O {[%clk 0:02:56]} 15. Kb1 {[%clk 0:02:32]}  Kb8 {[%clk 0:02:55]} 16. Rc1 {[%clk 0:02:32]}  Qb4 {[%clk 0:02:51]} 17. a3 {[%clk 0:02:30]}  Qb6 {[%clk 0:02:51]} 18. Na4 {[%clk 0:02:29]}  Qa5 {[%clk 0:02:47]} 19. Nc5 {[%clk 0:02:28]}  Bc8 {[%clk 0:02:47]} 20. Ka2 {[%clk 0:02:19]}  Ne6 {[%clk 0:02:45]} 21. b4 {[%clk 0:02:18]}  Qb6 {[%clk 0:02:42]} 22. Rb1 {[%clk 0:02:18]}  Ne8 {[%clk 0:02:28]} 23. Rhc1 {[%clk 0:02:12]}  Nd6 {[%clk 0:02:26]} 24. a4 {[%clk 0:02:09]}  Ka8 {[%clk 0:02:04]} 25. b5 {[%clk 0:02:04]}  cxb5 {[%clk 0:01:42]} 26. Bxb5 {[%clk 0:02:00]}  Qa5 {[%clk 0:01:42]} 27. Nxe6 {[%clk 0:01:46]}  Bxe6 {[%clk 0:01:40]} 28. Qc7 {[%clk 0:01:41]}  Qxc7 {[%clk 0:01:37]} 29. Rxc7 {[%clk 0:01:41]}  Rc8 {[%clk 0:01:36]} 30. Rbc1 {[%clk 0:01:34]}  Rxc7 {[%clk 0:01:35]} 31. Rxc7 {[%clk 0:01:34]}  Kb8 {[%clk 0:01:34]} 32. Rc1 {[%clk 0:01:13]}  Rc8 {[%clk 0:01:29]} 33. Rxc8+ {[%clk 0:01:11]}  Kxc8 {[%clk 0:01:30]} 34. Kb2 {[%clk 0:01:10]}  Nxb5 {[%clk 0:01:16]} 35. axb5 {[%clk 0:01:07]}  Bd7 {[%clk 0:01:17]} 36. b6 {[%clk 0:01:00]}  axb6 {[%clk 0:01:18]} 37. Kc3 {[%clk 0:01:00]}  Kc7 {[%clk 0:01:14]} 38. Kb4 {[%clk 0:00:59]}  Kd6 {[%clk 0:01:13]} 39. f3 {[%clk 0:00:58]}  f5 {[%clk 0:01:02]} 40. Ne2 {[%clk 0:00:22]}  h5 {[%clk 0:00:58]} 41. gxh5 {[%clk 0:00:21]}  gxh5 {[%clk 0:00:58]} 42. h4 {[%clk 0:00:20]}  Kc6 {[%clk 0:00:44]} 43. Nf4 {[%clk 0:00:19]}  Be8 {[%clk 0:00:44]} 44. Nd3 {[%clk 0:00:19]}  Kd6 {[%clk 0:00:42]} 45. Ne5 {[%clk 0:00:19]}  Ke6 {[%clk 0:00:40]} 46. Nd3 {[%clk 0:00:19]}  Kd6 {[%clk 0:00:40]} 47. Nf4 {[%clk 0:00:19]}  Kc6 {[%clk 0:00:34]} 48. Ne2 {[%clk 0:00:19]}  Kd6 {[%clk 0:00:35]} 49. Ng3 {[%clk 0:00:19]}  Ke6 {[%clk 0:00:33]} 50. f4 {[%clk 0:00:19]}  Kf6 {[%clk 0:00:32]} 51. Ne2 {[%clk 0:00:20]}  Ke6 {[%clk 0:00:33]} 52. Nc1 {[%clk 0:00:20]}  Kd6 {[%clk 0:00:33]} 53. Nd3 {[%clk 0:00:20]}  Ke6 {[%clk 0:00:33]} 54. Nb2 {[%clk 0:00:20]}  Kd6 {[%clk 0:00:33]} 55. Nd1 {[%clk 0:00:21]}  Ke6 {[%clk 0:00:34]} 56. Nc3 {[%clk 0:00:21]}  Kd6 {[%clk 0:00:34]} 57. Ne2 {[%clk 0:00:22]}  Ke6 {[%clk 0:00:34]} 58. Ng3 {[%clk 0:00:22]}  Kf6 {[%clk 0:00:35]} 59. Kc3 {[%clk 0:00:21]}  Ke6 {[%clk 0:00:34]} 60. Ne2 {[%clk 0:00:21]}  Bb5 {[%clk 0:00:32]} 61. Ng3 {[%clk 0:00:21]}  Be8 {[%clk 0:00:32]} 62. Kd2 {[%clk 0:00:21]}  Kd6 {[%clk 0:00:32]} 63. Ne2 {[%clk 0:00:21]}  Ke6 {[%clk 0:00:32]} 64. Ng3 {[%clk 0:00:20]}  Kf6 {[%clk 0:00:31]} 65. Ke2 {[%clk 0:00:21]}  Ke6 {[%clk 0:00:32]} 66. Kf3 {[%clk 0:00:21]}  Kf6 {[%clk 0:00:32]} 67. Ne2 {[%clk 0:00:22]}  Ke6 {[%clk 0:00:32]} 68. Nc1 {[%clk 0:00:22]}  Kf6 {[%clk 0:00:33]} 69. Nd3 {[%clk 0:00:23]}  Ke6 {[%clk 0:00:33]} 70. Nb4 {[%clk 0:00:23]}  Kd6 {[%clk 0:00:33]} 71. Ke2 {[%clk 0:00:23]}  Ke6 {[%clk 0:00:33]} 72. Kd2 {[%clk 0:00:23]}  Kd6 {[%clk 0:00:33]} 73. Nd3 {[%clk 0:00:24]}  Ke6 {[%clk 0:00:31]} 74. Ne5 {[%clk 0:00:24]} 1/2-1/2


[Site "https://www.chess.com"]

[Event "Titled Tuesday Blitz May 23 Late 2023"]
[White "Toncheva, Nadya"]
[Black "Ammar, Sedrani"]
[WhiteFideId "2924056"]
[BlackFideId "9312331"]
[WhiteElo "2101"]
[BlackElo "2115"]
[Result "0-1"]
[Round "09"]
[TimeControl "180+2"]
[Date "2023.05.23"]
[WhiteClock "0:00:03"]
[BlackClock "0:00:23"]

1. e4 {[%clk 0:03:00]}  e5 {[%clk 0:02:57]} 2. Nf3 {[%clk 0:03:01]}  Nc6 {[%clk 0:02:57]} 3. Bb5 {[%clk 0:03:01]}  a6 {[%clk 0:02:55]} 4. Ba4 {[%clk 0:03:01]}  Nf6 {[%clk 0:02:53]} 5. O-O {[%clk 0:03:00]}  Be7 {[%clk 0:02:52]} 6. Re1 {[%clk 0:03:01]}  b5 {[%clk 0:02:51]} 7. Bb3 {[%clk 0:03:01]}  O-O {[%clk 0:02:52]} 8. a4 {[%clk 0:03:02]}  Rb8 {[%clk 0:02:46]} 9. axb5 {[%clk 0:03:00]}  axb5 {[%clk 0:02:47]} 10. d3 {[%clk 0:02:59]}  d6 {[%clk 0:02:42]} 11. h3 {[%clk 0:02:58]}  Bd7 {[%clk 0:02:38]} 12. Nbd2 {[%clk 0:02:57]}  Nb4 {[%clk 0:02:35]} 13. Nf1 {[%clk 0:02:53]}  c5 {[%clk 0:02:34]} 14. Bd2 {[%clk 0:02:47]}  Nc6 {[%clk 0:02:33]} 15. Ne3 {[%clk 0:02:46]}  Nd4 {[%clk 0:02:26]} 16. Nxd4 {[%clk 0:02:39]}  cxd4 {[%clk 0:02:24]} 17. Nd5 {[%clk 0:02:37]}  Be6 {[%clk 0:02:18]} 18. Nxf6+ {[%clk 0:02:13]}  Bxf6 {[%clk 0:02:19]} 19. c3 {[%clk 0:02:14]}  d5 {[%clk 0:02:09]} 20. cxd4 {[%clk 0:01:59]}  exd4 {[%clk 0:02:04]} 21. e5 {[%clk 0:01:58]}  Be7 {[%clk 0:02:02]} 22. Qe2 {[%clk 0:01:42]}  Qd7 {[%clk 0:01:59]} 23. Rec1 {[%clk 0:01:39]}  Rfc8 {[%clk 0:01:57]} 24. Qf3 {[%clk 0:01:30]}  h6 {[%clk 0:01:35]} 25. Bf4 {[%clk 0:01:11]}  Rc6 {[%clk 0:01:28]} 26. Rxc6 {[%clk 0:01:02]}  Qxc6 {[%clk 0:01:26]} 27. Qd1 {[%clk 0:01:03]}  Rc8 {[%clk 0:01:24]} 28. Rc1 {[%clk 0:01:02]}  Qb7 {[%clk 0:01:24]} 29. Rxc8+ {[%clk 0:01:02]}  Qxc8 {[%clk 0:01:25]} 30. Qc2 {[%clk 0:00:59]}  Qa8 {[%clk 0:01:13]} 31. Kh2 {[%clk 0:00:56]}  g5 {[%clk 0:01:12]} 32. Bg3 {[%clk 0:00:55]}  h5 {[%clk 0:01:12]} 33. f3 {[%clk 0:00:54]}  Kg7 {[%clk 0:01:10]} 34. Bf2 {[%clk 0:00:51]}  Qa7 {[%clk 0:01:01]} 35. Qd2 {[%clk 0:00:47]}  f6 {[%clk 0:00:50]} 36. exf6+ {[%clk 0:00:46]}  Bxf6 {[%clk 0:00:49]} 37. Qb4 {[%clk 0:00:45]}  Qc7+ {[%clk 0:00:40]} 38. Bg3 {[%clk 0:00:32]}  Be5 {[%clk 0:00:35]} 39. Qe1 {[%clk 0:00:30]}  Kf6 {[%clk 0:00:22]} 40. Bxe5+ {[%clk 0:00:21]}  Qxe5+ {[%clk 0:00:22]} 41. Qxe5+ {[%clk 0:00:22]}  Kxe5 {[%clk 0:00:23]} 42. Kg3 {[%clk 0:00:23]}  Bf5 {[%clk 0:00:23]} 43. Bc2 {[%clk 0:00:23]}  h4+ {[%clk 0:00:23]} 44. Kf2 {[%clk 0:00:23]}  Kf4 {[%clk 0:00:24]} 45. b4 {[%clk 0:00:23]}  Be6 {[%clk 0:00:23]} 46. Bb3 {[%clk 0:00:19]}  Bf5 {[%clk 0:00:22]} 47. Bxd5 {[%clk 0:00:18]}  Bxd3 {[%clk 0:00:22]} 48. Bc6 {[%clk 0:00:18]}  Bc4 {[%clk 0:00:22]} 49. Bd7 {[%clk 0:00:13]}  d3 {[%clk 0:00:22]} 50. Ke1 {[%clk 0:00:06]}  Ke3 {[%clk 0:00:22]} 51. Bf5 {[%clk 0:00:05]}  d2+ {[%clk 0:00:22]} 52. Kd1 {[%clk 0:00:03]}  Bb3+ {[%clk 0:00:23]} 0-1


[Site "https://www.chess.com"]

[Event "Titled Tuesday Blitz May 23 Late 2023"]
[White "Haszon, David"]
[Black "Figorito, Nick"]
[WhiteFideId "733610"]
[BlackFideId "30923689"]
[WhiteElo "2210"]
[BlackElo "2379"]
[Result "1-0"]
[Round "09"]
[TimeControl "180+2"]
[Date "2023.05.23"]
[WhiteClock "0:00:50"]
[BlackClock "0:00:01"]

1. d4 {[%clk 0:03:00]}  Nf6 {[%clk 0:03:00]} 2. Bf4 {[%clk 0:03:01]}  g6 {[%clk 0:02:59]} 3. Nc3 {[%clk 0:03:00]}  d5 {[%clk 0:02:58]} 4. e3 {[%clk 0:02:53]}  Bg7 {[%clk 0:02:58]} 5. h4 {[%clk 0:02:53]}  h5 {[%clk 0:02:57]} 6. Nf3 {[%clk 0:02:53]}  Bg4 {[%clk 0:02:52]} 7. Qd3 {[%clk 0:02:50]}  c6 {[%clk 0:02:48]} 8. Ng5 {[%clk 0:02:49]}  Bf5 {[%clk 0:02:45]} 9. Qd2 {[%clk 0:02:48]}  b5 {[%clk 0:02:30]} 10. Bd3 {[%clk 0:02:48]}  Bxd3 {[%clk 0:02:29]} 11. Qxd3 {[%clk 0:02:48]}  Nbd7 {[%clk 0:02:10]} 12. e4 {[%clk 0:02:46]}  dxe4 {[%clk 0:02:10]} 13. Ncxe4 {[%clk 0:02:47]}  Qa5+ {[%clk 0:01:58]} 14. Bd2 {[%clk 0:02:44]}  Qb6 {[%clk 0:01:52]} 15. Be3 {[%clk 0:02:28]}  Nxe4 {[%clk 0:01:49]} 16. Nxe4 {[%clk 0:02:21]}  Qa5+ {[%clk 0:01:47]} 17. Bd2 {[%clk 0:02:20]}  Qb6 {[%clk 0:01:47]} 18. c3 {[%clk 0:01:54]}  a5 {[%clk 0:01:28]} 19. Qe2 {[%clk 0:01:53]}  O-O {[%clk 0:01:24]} 20. g4 {[%clk 0:01:54]}  hxg4 {[%clk 0:01:14]} 21. h5 {[%clk 0:01:54]}  Nf6 {[%clk 0:00:51]} 22. hxg6 {[%clk 0:01:40]}  fxg6 {[%clk 0:00:47]} 23. Ng5 {[%clk 0:01:36]}  c5 {[%clk 0:00:36]} 24. dxc5 {[%clk 0:01:37]}  Qc6 {[%clk 0:00:29]} 25. O-O-O {[%clk 0:01:29]}  b4 {[%clk 0:00:21]} 26. Qc4+ {[%clk 0:01:29]}  e6 {[%clk 0:00:18]} 27. Nxe6 {[%clk 0:01:25]}  Qe4 {[%clk 0:00:17]} 28. Qxe4 {[%clk 0:01:16]}  Nxe4 {[%clk 0:00:18]} 29. Nxf8 {[%clk 0:01:17]}  Rxf8 {[%clk 0:00:14]} 30. cxb4 {[%clk 0:01:06]}  Nxf2 {[%clk 0:00:12]} 31. b5 {[%clk 0:01:03]}  Nd3+ {[%clk 0:00:06]} 32. Kc2 {[%clk 0:01:02]}  Nxc5 {[%clk 0:00:06]} 33. Bxa5 {[%clk 0:00:59]}  Ra8 {[%clk 0:00:04]} 34. Bc3 {[%clk 0:00:59]}  Rxa2 {[%clk 0:00:01]} 35. Ra1 {[%clk 0:00:56]}  Rxa1 {[%clk 0:00:01]} 36. Rxa1 {[%clk 0:00:57]}  Bxc3 {[%clk 0:00:01]} 37. bxc3 {[%clk 0:00:56]}  g3 {[%clk 0:00:01]} 38. c4 {[%clk 0:00:55]}  Kf7 {[%clk 0:00:01]} 39. Rg1 {[%clk 0:00:52]}  Ne4 {[%clk 0:00:02]} 40. b6 {[%clk 0:00:51]}  Ke6 {[%clk 0:00:01]} 41. b7 {[%clk 0:00:50]} 1-0


[Site "https://www.chess.com"]

[Event "Titled Tuesday Blitz May 23 Late 2023"]
[White "FuenfgegenWilly"]
[Black "Goncalves, Davi Sulzbacher"]
[BlackFideId "2154510"]
[WhiteElo "2376"]
[BlackElo "2182"]
[Result "1/2-1/2"]
[Round "09"]
[TimeControl "180+2"]
[Date "2023.05.23"]
[WhiteClock "0:00:14"]
[BlackClock "0:00:03"]

1. d4 {[%clk 0:02:55]}  Nf6 {[%clk 0:02:02]} 2. Bg5 {[%clk 0:02:52]}  d5 {[%clk 0:01:59]} 3. Bxf6 {[%clk 0:02:50]}  gxf6 {[%clk 0:01:59]} 4. e3 {[%clk 0:02:47]}  e6 {[%clk 0:01:56]} 5. g3 {[%clk 0:02:45]}  c5 {[%clk 0:01:56]} 6. Bg2 {[%clk 0:02:42]}  Nc6 {[%clk 0:01:56]} 7. Ne2 {[%clk 0:02:41]}  Qb6 {[%clk 0:01:55]} 8. Nbc3 {[%clk 0:02:36]}  cxd4 {[%clk 0:01:54]} 9. exd4 {[%clk 0:02:35]}  Bd7 {[%clk 0:01:52]} 10. Na4 {[%clk 0:02:24]}  Qa5+ {[%clk 0:01:43]} 11. c3 {[%clk 0:02:24]}  Nxd4 {[%clk 0:01:42]} 12. Qxd4 {[%clk 0:02:13]}  Qxa4 {[%clk 0:01:40]} 13. Qxf6 {[%clk 0:02:13]}  Rg8 {[%clk 0:01:38]} 14. Qd4 {[%clk 0:02:09]}  Qxd4 {[%clk 0:01:37]} 15. Nxd4 {[%clk 0:02:09]}  Bg7 {[%clk 0:01:21]} 16. O-O-O {[%clk 0:02:04]}  Rc8 {[%clk 0:01:16]} 17. Kb1 {[%clk 0:02:02]}  Rc4 {[%clk 0:01:02]} 18. Rhe1 {[%clk 0:01:57]}  Bxd4 {[%clk 0:00:53]} 19. Rxd4 {[%clk 0:01:58]}  Rxd4 {[%clk 0:00:53]} 20. cxd4 {[%clk 0:01:59]}  Ke7 {[%clk 0:00:52]} 21. Bf1 {[%clk 0:01:55]}  Kd6 {[%clk 0:00:48]} 22. Bd3 {[%clk 0:01:55]}  f6 {[%clk 0:00:42]} 23. h4 {[%clk 0:01:53]}  h6 {[%clk 0:00:40]} 24. Bh7 {[%clk 0:01:34]}  Rg7 {[%clk 0:00:37]} 25. Bc2 {[%clk 0:01:35]}  a5 {[%clk 0:00:35]} 26. Re3 {[%clk 0:01:32]}  Rg4 {[%clk 0:00:32]} 27. f4 {[%clk 0:01:31]}  b5 {[%clk 0:00:29]} 28. Bd1 {[%clk 0:01:31]}  Rg8 {[%clk 0:00:28]} 29. Be2 {[%clk 0:01:26]}  b4 {[%clk 0:00:27]} 30. a3 {[%clk 0:01:24]}  Ba4 {[%clk 0:00:17]} 31. axb4 {[%clk 0:01:07]}  axb4 {[%clk 0:00:16]} 32. b3 {[%clk 0:01:07]}  Bd7 {[%clk 0:00:16]} 33. Kb2 {[%clk 0:01:08]}  Bc6 {[%clk 0:00:12]} 34. Bh5 {[%clk 0:01:07]}  Bd7 {[%clk 0:00:12]} 35. Bf7 {[%clk 0:01:05]}  Rg7 {[%clk 0:00:12]} 36. Bh5 {[%clk 0:01:06]}  Rg8 {[%clk 0:00:12]} 37. Be2 {[%clk 0:01:04]}  Rc8 {[%clk 0:00:12]} 38. Bf1 {[%clk 0:00:59]}  Rf8 {[%clk 0:00:12]} 39. Bh3 {[%clk 0:00:57]}  Rg8 {[%clk 0:00:11]} 40. Bf1 {[%clk 0:00:55]}  Be8 {[%clk 0:00:11]} 41. Kc1 {[%clk 0:00:52]}  Bg6 {[%clk 0:00:11]} 42. Kd2 {[%clk 0:00:51]}  Ra8 {[%clk 0:00:10]} 43. Ke1 {[%clk 0:00:48]}  Ra2 {[%clk 0:00:10]} 44. Be2 {[%clk 0:00:47]}  Be4 {[%clk 0:00:09]} 45. Kf2 {[%clk 0:00:45]}  f5 {[%clk 0:00:09]} 46. Ke1 {[%clk 0:00:44]}  Rb2 {[%clk 0:00:08]} 47. Bd1 {[%clk 0:00:42]}  Rg2 {[%clk 0:00:07]} 48. Kf1 {[%clk 0:00:41]}  Rh2 {[%clk 0:00:07]} 49. Be2 {[%clk 0:00:37]}  Rh1+ {[%clk 0:00:06]} 50. Kf2 {[%clk 0:00:37]}  Rb1 {[%clk 0:00:07]} 51. Bb5 {[%clk 0:00:32]}  Bc2 {[%clk 0:00:06]} 52. Ba4 {[%clk 0:00:31]}  Rb2 {[%clk 0:00:06]} 53. Ke1 {[%clk 0:00:30]}  Be4 {[%clk 0:00:06]} 54. Re2 {[%clk 0:00:28]}  Rb1+ {[%clk 0:00:05]} 55. Kf2 {[%clk 0:00:28]}  Bd3 {[%clk 0:00:05]} 56. Rd2 {[%clk 0:00:27]}  Be4 {[%clk 0:00:04]} 57. Re2 {[%clk 0:00:25]}  Rc1 {[%clk 0:00:05]} 58. Re1 {[%clk 0:00:21]}  Rc3 {[%clk 0:00:04]} 59. Re3 {[%clk 0:00:21]}  Kc7 {[%clk 0:00:04]} 60. Ke2 {[%clk 0:00:20]}  Rc2+ {[%clk 0:00:04]} 61. Ke1 {[%clk 0:00:18]}  Kb7 {[%clk 0:00:03]} 62. Re2 {[%clk 0:00:17]}  Rc3 {[%clk 0:00:03]} 63. Kf2 {[%clk 0:00:16]}  Kc7 {[%clk 0:00:04]} 64. Re3 {[%clk 0:00:16]}  Rc2+ {[%clk 0:00:03]} 65. Re2 {[%clk 0:00:17]}  Rc1 {[%clk 0:00:03]} 66. Re1 {[%clk 0:00:17]}  Rc3 {[%clk 0:00:02]} 67. Re3 {[%clk 0:00:17]}  Kd6 {[%clk 0:00:03]} 68. Ke2 {[%clk 0:00:12]}  Ke7 {[%clk 0:00:03]} 69. Kd2 {[%clk 0:00:12]}  Rc2+ {[%clk 0:00:03]} 70. Ke1 {[%clk 0:00:12]}  Rb2 {[%clk 0:00:03]} 71. Re2 {[%clk 0:00:13]}  Rb1+ {[%clk 0:00:03]} 72. Kf2 {[%clk 0:00:13]}  Bd3 {[%clk 0:00:03]} 73. Rd2 {[%clk 0:00:13]}  Be4 {[%clk 0:00:03]} 74. Re2 {[%clk 0:00:12]}  Kf6 {[%clk 0:00:04]} 75. Re1 {[%clk 0:00:13]}  Rb2+ {[%clk 0:00:03]} 76. Re2 {[%clk 0:00:13]}  Rb1 {[%clk 0:00:03]} 77. Re1 {[%clk 0:00:14]}  Rb2+ {[%clk 0:00:03]} 78. Re2 {[%clk 0:00:14]}  Rb1 {[%clk 0:00:03]} 1/2-1/2


[Site "https://www.chess.com"]

[Event "Titled Tuesday Blitz May 23 Late 2023"]
[White "Smiechu"]
[Black "Bilan, Danila"]
[BlackFideId "24161918"]
[WhiteElo "2368"]
[BlackElo "2182"]
[Result "0-1"]
[Round "09"]
[TimeControl "180+2"]
[Date "2023.05.23"]
[WhiteClock "0:02:14"]
[BlackClock "0:01:39"]

1. e4 {[%clk 0:03:00]}  c6 {[%clk 0:02:55]} 2. d4 {[%clk 0:02:59]}  d5 {[%clk 0:02:55]} 3. f3 {[%clk 0:03:00]}  Qb6 {[%clk 0:02:52]} 4. c3 {[%clk 0:02:53]}  e5 {[%clk 0:02:47]} 5. Ne2 {[%clk 0:02:42]}  dxe4 {[%clk 0:02:41]} 6. fxe4 {[%clk 0:02:41]}  Nf6 {[%clk 0:02:38]} 7. Ng3 {[%clk 0:02:36]}  Bg4 {[%clk 0:02:29]} 8. Be2 {[%clk 0:02:32]}  Bxe2 {[%clk 0:02:26]} 9. Qxe2 {[%clk 0:02:33]}  exd4 {[%clk 0:02:19]} 10. O-O {[%clk 0:02:33]}  d3+ {[%clk 0:01:57]} 11. Qf2 {[%clk 0:02:24]}  Bc5 {[%clk 0:01:56]} 12. Nf5 {[%clk 0:02:20]}  Bxf2+ {[%clk 0:01:51]} 13. Rxf2 {[%clk 0:02:20]}  Ng4 {[%clk 0:01:49]} 14. Nxg7+ {[%clk 0:02:17]}  Kf8 {[%clk 0:01:46]} 15. Ne6+ {[%clk 0:02:18]}  Ke7 {[%clk 0:01:41]} 16. Nd4 {[%clk 0:02:14]}  Nxf2 {[%clk 0:01:39]} 0-1


[Site "https://www.chess.com"]

[Event "Titled Tuesday Blitz May 23 Late 2023"]
[White "Sarkar, Justin"]
[Black "Toniutti, Ezio"]
[WhiteFideId "2010011"]
[BlackFideId "113034"]
[WhiteElo "2168"]
[BlackElo "2215"]
[Result "0-1"]
[Round "09"]
[TimeControl "180+2"]
[Date "2023.05.23"]
[WhiteClock "0:00:00"]
[BlackClock "0:00:28"]

1. e4 {[%clk 0:02:00]}  e5 {[%clk 0:02:58]} 2. f4 {[%clk 0:02:00]}  Bc5 {[%clk 0:02:57]} 3. Nf3 {[%clk 0:01:58]}  d6 {[%clk 0:02:57]} 4. Bc4 {[%clk 0:01:55]}  Nf6 {[%clk 0:02:57]} 5. d3 {[%clk 0:01:53]}  Nc6 {[%clk 0:02:55]} 6. c3 {[%clk 0:01:48]}  a6 {[%clk 0:02:42]} 7. Qe2 {[%clk 0:01:39]}  O-O {[%clk 0:02:37]} 8. b4 {[%clk 0:01:31]}  Bb6 {[%clk 0:02:35]} 9. f5 {[%clk 0:01:29]}  d5 {[%clk 0:02:34]} 10. Bb3 {[%clk 0:01:28]}  d4 {[%clk 0:02:17]} 11. a3 {[%clk 0:01:21]}  dxc3 {[%clk 0:02:17]} 12. Nxc3 {[%clk 0:01:21]}  a5 {[%clk 0:02:10]} 13. Bg5 {[%clk 0:01:11]}  Nd4 {[%clk 0:01:57]} 14. Nxd4 {[%clk 0:01:05]}  Qxd4 {[%clk 0:01:56]} 15. Rc1 {[%clk 0:00:56]}  axb4 {[%clk 0:01:56]} 16. axb4 {[%clk 0:00:12]}  Qxb4 {[%clk 0:01:53]} 17. Bxf6 {[%clk 0:00:10]}  gxf6 {[%clk 0:01:47]} 18. Bc4 {[%clk 0:00:02]}  Bd4 {[%clk 0:01:08]} 19. Qd2 {[%clk 0:00:02]}  Ra3 {[%clk 0:01:03]} 20. Nd5 {[%clk 0:00:01]}  Qxd2+ {[%clk 0:00:54]} 21. Kxd2 {[%clk 0:00:01]}  Kg7 {[%clk 0:00:52]} 22. Nxc7 {[%clk 0:00:01]}  Bd7 {[%clk 0:00:47]} 23. Nb5 {[%clk 0:00:01]}  Bxb5 {[%clk 0:00:44]} 24. Bxb5 {[%clk 0:00:01]}  Ra2+ {[%clk 0:00:33]} 25. Rc2 {[%clk 0:00:00]}  Be3+ {[%clk 0:00:28]} 0-1


[Site "https://www.chess.com"]